bitfinex/quotes_BTCUSD_20241201
["timestamp","ask_amount","ask_price","bid_price","bid_amount"]
[1733029578744,0.18011712,96550.0,96549.0,0.0009225]
[1733029579132,0.11467999,96550.0,96549.0,0.0009225]
[1733029579536,0.11867999,96550.0,96549.0,0.0009225]
[1733029579738,0.12067999,96550.0,96549.0,0.0009225]
[1733029579985,0.11667999,96550.0,96549.0,0.0009225]
[1733029580186,0.11967999,96550.0,96549.0,0.0009225]
[1733029580428,0.18561712,96550.0,96549.0,0.0009225]
[1733029580835,0.18361712,96550.0,96549.0,0.0009225]
[1733029581040,0.18061712,96550.0,96549.0,0.0009225]
[1733029581245,0.18361712,96550.0,96549.0,0.0009225]
[1733029581502,0.18561712,96550.0,96549.0,0.0009225]
[1733029582221,0.11967999,96550.0,96549.0,0.0009225]
[1733029582581,0.11667999,96550.0,96549.0,0.0009225]
[1733029582803,0.11767999,96550.0,96549.0,0.0009225]
[1733029583349,0.11967999,96550.0,96549.0,0.0009225]
[1733029586118,0.13051725,96550.0,96549.0,0.0009225]
[1733029587858,0.13051725,96550.0,96531.0,0.1259]
[1733029588029,0.207165,96541.0,96539.0,0.0009804]
[1733029588890,0.207162,96543.0,96539.0,0.0009804]
[1733029589421,0.207162,96543.0,96539.0,0.0019804]
[1733029589620,0.414324,96543.0,96539.0,0.0019804]
[1733029590082,0.414324,96543.0,96539.0,0.0009804]
[1733029590294,0.207162,96543.0,96539.0,0.0009804]
[1733029590600,0.217148,96549.0,96539.0,0.0019804]
[1733029590826,7.991e-05,96548.0,96540.0,0.12968281]
[1733029592127,7.991e-05,96548.0,96545.0,0.207155]
[1733029592333,7.991e-05,96548.0,96547.0,0.290252]
[1733029592489,7.991e-05,96548.0,96547.0,0.335452]
[1733029592490,0.00207991,96548.0,96547.0,0.335452]
[1733029593284,7.991e-05,96548.0,96547.0,0.1283]
[1733029593498,7.991e-05,96548.0,96547.0,0.12968231]
[1733029593698,7.991e-05,96548.0,96547.0,0.13268231]
[1733029594096,7.991e-05,96548.0,96547.0,0.13768231]
[1733029595318,7.991e-05,96548.0,96547.0,0.13268231]
[1733029595737,0.00107991,96548.0,96547.0,0.13968231]
[1733029600656,0.00107991,96548.0,96547.0,0.521239]
[1733029600884,0.00107991,96548.0,96547.0,0.51985669]
[1733029601103,0.00107991,96548.0,96547.0,0.2883]
[1733029602852,0.00280771,96548.0,96547.0,0.2883]
[1733029603473,0.00280771,96548.0,96547.0,0.29925556]
[1733029606602,0.00280771,96548.0,96547.0,0.53073214]
[1733029606840,0.00280771,96548.0,96547.0,0.53073258]
[1733029608432,0.00280771,96548.0,96547.0,0.29925556]
[1733029610151,0.00280771,96548.0,96547.0,0.5308875]
[1733029612261,0.00280771,96548.0,96547.0,0.29925556]
[1733029613491,0.00280771,96548.0,96547.0,0.53088548]
[1733029614462,0.00280771,96548.0,96547.0,0.29925556]
[1733029617098,0.00280771,96548.0,96547.0,0.53079449]
[1733029617297,0.00280771,96548.0,96547.0,0.5307967]
[1733029619822,0.00280771,96548.0,96547.0,0.29925556]
[1733029619993,0.00180771,96548.0,96547.0,0.29225556]
[1733029620572,0.00180771,96548.0,96547.0,0.52377076]
[1733029620775,0.00180771,96548.0,96547.0,0.52077076]
[1733029620984,0.00180771,96548.0,96547.0,0.52077041]
[1733029621302,0.00180771,96548.0,96547.0,0.29225556]
[1733029621502,0.00280771,96548.0,96547.0,0.29525556]
[1733029621784,0.00180771,96548.0,96547.0,0.28925556]
[1733029621987,0.00180771,96548.0,96547.0,0.29425556]
[1733029622234,0.00280771,96548.0,96547.0,0.30325556]
[1733029622566,0.00280771,96548.0,96547.0,0.40610077]
[1733029623569,0.00280771,96548.0,96547.0,0.6839186]
[1733029624825,0.00280771,96548.0,96547.0,0.41610077]
[1733029627620,5.943e-05,96550.0,96549.0,0.01]
[1733029627821,5.943e-05,96550.0,96549.0,0.39332209]
[1733029628031,5.943e-05,96550.0,96549.0,0.39194061]
[1733029628909,5.943e-05,96550.0,96549.0,0.39694061]
[1733029629302,0.00105943,96550.0,96549.0,0.40594061]
[1733029637473,0.00278723,96550.0,96549.0,0.41366781]
[1733029638637,0.00278723,96550.0,96549.0,0.40594061]
[1733029639084,0.00278723,96550.0,96549.0,0.39594061]
[1733029639240,0.00278723,96550.0,96549.0,0.40594061]
[1733029639725,0.00278723,96550.0,96549.0,0.32524061]
[1733029641285,0.00278723,96550.0,96549.0,0.1649954]
[1733029641490,0.00278723,96550.0,96549.0,0.16637743]
[1733029657735,0.00278723,96550.0,96549.0,0.44459844]
[1733029657933,0.00278723,96550.0,96549.0,0.1649954]
[1733029658158,0.07828723,96550.0,96549.0,0.01637765]
[1733029658350,0.07828723,96550.0,96549.0,0.0149954]
[1733029658976,0.12588723,96550.0,96549.0,0.0149954]
[1733029659388,0.12588723,96550.0,96549.0,0.24691436]
[1733029659817,0.12588723,96550.0,96549.0,0.0149954]
[1733029661322,0.12588723,96550.0,96549.0,0.0099954]
[1733029661518,0.23873244,96550.0,96549.0,0.0099954]
[1733029661949,0.23873244,96550.0,96549.0,0.0109954]
[1733029662353,0.23973244,96550.0,96549.0,0.0109954]
[1733029662780,0.23873244,96550.0,96549.0,0.0019954]
[1733029662983,0.23873244,96550.0,96549.0,0.0039954]
[1733029663424,0.23873244,96550.0,96549.0,0.00372289]
[1733029663757,0.24073244,96550.0,96549.0,0.00372289]
[1733029663953,0.23973244,96550.0,96549.0,0.00272289]
[1733029664164,0.24073244,96550.0,96549.0,0.00272289]
[1733029664898,0.23973244,96550.0,96549.0,0.00272289]
[1733029665127,0.24073244,96550.0,96549.0,0.00272289]
[1733029666979,0.23973244,96550.0,96549.0,0.00272289]
[1733029667239,0.23773244,96550.0,96549.0,0.00072289]
[1733029667774,0.23973244,96550.0,96549.0,0.00072289]
[1733029668011,0.24073244,96550.0,96549.0,0.00072289]
[1733029669249,0.23873244,96550.0,96549.0,0.00072289]
[1733029669648,0.23973244,96550.0,96549.0,0.00072289]
[1733029670136,0.23873244,96550.0,96549.0,0.00072289]
[1733029670342,0.23973244,96550.0,96549.0,0.00072289]
[1733029671793,0.32601972,96550.0,96549.0,0.00072289]
[1733029672017,0.253748,96549.0,96548.0,0.0008638]
[1733029672265,0.35659321,96549.0,96548.0,0.0008638]
[1733029673259,0.35759321,96549.0,96548.0,0.0008638]
[1733029679837,0.001,96549.0,96548.0,0.0008638]
[1733029680611,0.00178723,96550.0,96548.0,0.2080138]
[1733029680858,0.00178723,96550.0,96549.0,0.0009826]
[1733029682993,0.00278723,96550.0,96549.0,0.28696507]
[1733029683229,0.00278723,96550.0,96549.0,0.2855826]
[1733029684237,0.00178723,96550.0,96549.0,0.2805826]
[1733029684635,0.00178723,96550.0,96549.0,0.2765826]
[1733029684845,0.00178723,96550.0,96549.0,0.2815826]
[1733029685606,0.00278723,96550.0,96549.0,0.2905826]
[1733029685834,0.00278723,96550.0,96549.0,0.2815826]
[1733029686231,0.00378723,96550.0,96549.0,0.2905826]
[1733029686409,0.00378723,96550.0,96549.0,0.2914464]
[1733029687645,0.00378723,96550.0,96549.0,0.2426464]
[1733029687869,0.00378723,96550.0,96549.0,0.1658464]
[1733029688060,0.00378723,96550.0,96549.0,0.16722851]
[1733029689637,0.00378723,96550.0,96549.0,0.39861991]
[1733029689833,0.00378723,96550.0,96549.0,0.3972378]
[1733029690033,0.00378723,96550.0,96549.0,0.1658464]
[1733029690322,0.00378723,96550.0,96549.0,0.39861989]
[1733029690578,0.00378723,96550.0,96549.0,0.3972378]
[1733029690775,0.00378723,96550.0,96549.0,0.1658464]
[1733029691128,0.00378723,96550.0,96549.0,0.16722853]
[1733029692500,0.00378723,96550.0,96549.0,0.35236107]
[1733029692611,0.00378723,96550.0,96549.0,0.35097894]
[1733029692819,0.00378723,96550.0,96549.0,0.1658464]
[1733029693041,0.00378723,96550.0,96549.0,0.16722853]
[1733029693241,0.00378723,96550.0,96549.0,0.35236107]
[1733029693441,0.00378723,96550.0,96549.0,0.35097894]
[1733029693946,0.00378723,96550.0,96549.0,0.1658464]
[1733029694147,0.00378723,96550.0,96549.0,0.16722853]
[1733029694582,0.00378723,96550.0,96549.0,0.3509977]
[1733029694788,0.00378723,96550.0,96549.0,0.1658464]
[1733029696560,0.00378723,96550.0,96549.0,0.3510214]
[1733029699195,0.00378723,96550.0,96549.0,0.1658464]
[1733029699723,0.00378723,96550.0,96549.0,0.0158464]
[1733029709534,0.00378723,96550.0,96549.0,0.20111606]
[1733029709815,0.00378723,96550.0,96549.0,0.0158464]
[1733029713531,0.00378723,96550.0,96549.0,0.20120858]
[1733029713733,0.05078723,96550.0,96549.0,0.20120858]
[1733029714616,0.05078723,96550.0,96549.0,0.0158464]
[1733029716554,0.05078723,96550.0,96549.0,0.20128862]
[1733029718506,0.05078723,96550.0,96549.0,0.0158464]
[1733029719646,0.05078723,96550.0,96549.0,0.0418256]
[1733029719860,0.05078723,96550.0,96549.0,0.0158464]
[1733029720494,0.05078723,96550.0,96549.0,0.20139077]
[1733029720920,0.05078723,96550.0,96549.0,0.0158464]
[1733029721503,0.05078723,96550.0,96549.0,0.20139859]
[1733029722773,0.05078723,96550.0,96549.0,0.0158464]
[1733029724422,0.05078723,96550.0,96549.0,0.24784401]
[1733029724649,0.05078723,96550.0,96549.0,0.0158464]
[1733029725501,0.05078723,96550.0,96549.0,0.24784401]
[1733029726057,0.05078723,96550.0,96549.0,0.247996]
[1733029726460,0.05078723,96550.0,96549.0,0.0158464]
[1733029726646,0.05078723,96550.0,96549.0,0.24799155]
[1733029727102,0.05078723,96550.0,96549.0,0.0158464]
[1733029727307,0.05078723,96550.0,96549.0,0.24799109]
[1733029727506,0.05078723,96550.0,96549.0,0.0158464]
[1733029727915,0.05078723,96550.0,96549.0,0.24798539]
[1733029730406,0.05078723,96550.0,96549.0,0.24798523]
[1733029730563,0.05078723,96550.0,96549.0,0.24799419]
[1733029731329,0.05078723,96550.0,96549.0,0.24799166]
[1733029733106,0.05078723,96550.0,96549.0,0.0158464]
[1733029733322,0.05078723,96550.0,96549.0,0.24799166]
[1733029734828,0.05078723,96550.0,96549.0,0.0158464]
[1733029736054,0.05078723,96550.0,96549.0,0.24805309]
[1733029736257,0.05078723,96550.0,96549.0,0.24805038]
[1733029736455,0.05078723,96550.0,96549.0,0.0158464]
[1733029736865,0.05078723,96550.0,96549.0,0.24806477]
[1733029737276,0.05078723,96550.0,96549.0,0.0158464]
[1733029737480,0.05078723,96550.0,96549.0,0.24806593]
[1733029737837,0.05078723,96550.0,96549.0,0.24805841]
[1733029738422,0.05078723,96550.0,96549.0,0.0158464]
[1733029739278,0.05078723,96550.0,96549.0,0.24806179]
[1733029739901,0.05078723,96550.0,96549.0,0.0158464]
[1733029740308,0.05078723,96550.0,96549.0,0.20163823]
[1733029741295,0.05078723,96550.0,96549.0,0.0158464]
[1733029741500,0.05078723,96550.0,96549.0,0.20163823]
[1733029742782,0.05078723,96550.0,96549.0,0.2015826]
[1733029743023,0.05078723,96550.0,96549.0,0.0158464]
[1733029750802,0.05078723,96550.0,96549.0,0.20155955]
[1733029751002,0.05078723,96550.0,96549.0,0.0158464]
[1733029751653,0.25793323,96550.0,96549.0,0.0158464]
[1733029753116,0.05078723,96550.0,96549.0,0.0158464]
[1733029753365,0.25793323,96550.0,96549.0,0.0158464]
[1733029754824,0.26793323,96550.0,96549.0,0.0158464]
[1733029755991,0.26693323,96550.0,96549.0,0.0158464]
[1733029756193,0.26693323,96550.0,96549.0,0.0068464]
[1733029756194,0.26593323,96550.0,96549.0,0.0068464]
[1733029756371,0.26593323,96550.0,96549.0,0.0018464]
[1733029756783,0.26593323,96550.0,96549.0,0.0028464]
[1733029757187,0.34229629,96550.0,96549.0,0.0028464]
[1733029757615,0.26593323,96550.0,96549.0,0.0028464]
[1733029758116,0.26593323,96550.0,96549.0,0.0068464]
[1733029759232,0.44687844,96550.0,96549.0,0.0068464]
[1733029760268,0.44687844,96550.0,96549.0,0.0058464]
[1733029761069,0.46987844,96550.0,96549.0,0.0018464]
[1733029761275,0.47572444,96550.0,96549.0,0.0038464]
[1733029764463,0.47572444,96550.0,96549.0,0.0028638]
[1733029767975,0.53515783,96550.0,96549.0,0.0028638]
[1733029772844,0.47572444,96550.0,96549.0,0.0028638]
[1733029798566,0.5080856,96550.0,96549.0,0.0028638]
[1733029800256,0.5022396,96550.0,96549.0,0.0028638]
[1733029803126,0.6522396,96550.0,96549.0,0.0028638]
[1733029803769,0.6532396,96550.0,96549.0,0.0028638]
[1733029803985,0.75607106,96550.0,96549.0,0.0028638]
[1733029804205,0.75607106,96550.0,96549.0,0.0008638]
[1733029804446,0.89571895,96550.0,96549.0,0.0008638]
[1733029804729,0.77307106,96550.0,96549.0,0.0018638]
[1733029804974,0.91271895,96550.0,96549.0,0.0018638]
[1733029805678,0.92271895,96550.0,96549.0,0.0018638]
[1733029805903,0.78307106,96550.0,96549.0,0.0018638]
[1733029807652,0.92277947,96550.0,96549.0,0.0018638]
[1733029808011,0.78307106,96550.0,96549.0,0.0018638]
[1733029808459,0.92276622,96550.0,96549.0,0.0018638]
[1733029811669,0.92273961,96550.0,96549.0,0.0018638]
[1733029812506,0.78307106,96550.0,96549.0,0.0018638]
[1733029813134,0.6802396,96550.0,96549.0,0.0018638]
[1733029815783,0.6702396,96550.0,96549.0,0.0018638]
[1733029816057,0.6802396,96550.0,96549.0,0.0018638]
[1733029826186,0.77334447,96550.0,96549.0,0.0018638]
[1733029826382,0.6802396,96550.0,96549.0,0.0018638]
[1733029826586,0.87617593,96550.0,96549.0,0.0018638]
[1733029826785,0.87620247,96550.0,96549.0,0.0018638]
[1733029827177,0.78307106,96550.0,96549.0,0.0018638]
[1733029827632,0.87620695,96550.0,96549.0,0.0018638]
[1733029828445,0.78307106,96550.0,96549.0,0.0018638]
[1733029828698,0.87621126,96550.0,96549.0,0.0018638]
[1733029829305,0.78307106,96550.0,96549.0,0.0018638]
[1733029831610,0.92276818,96550.0,96549.0,0.0018638]
[1733029831745,0.78307106,96550.0,96549.0,0.0018638]
[1733029831945,0.78790656,96550.0,96549.0,0.0018638]
[1733029832155,0.92760368,96550.0,96549.0,0.0018638]
[1733029832815,0.78790656,96550.0,96549.0,0.0018638]
[1733029833453,0.92760368,96550.0,96549.0,0.0018638]
[1733029834308,0.203,96549.0,96548.0,6e-07]
[1733029834515,0.70677897,96549.0,96548.0,6e-07]
[1733029834749,0.70928916,96549.0,96548.0,6e-07]
[1733029835674,0.71528916,96549.0,96548.0,0.0010006]
[1733029835891,0.71628916,96549.0,96548.0,6e-07]
[1733029836480,0.57654036,96549.0,96548.0,6e-07]
[1733029837894,0.56654036,96549.0,96548.0,6e-07]
[1733029839272,0.70632278,96549.0,96548.0,6e-07]
[1733029839521,0.56654036,96549.0,96548.0,6e-07]
[1733029839736,0.70632983,96549.0,96548.0,6e-07]
[1733029840149,0.56654036,96549.0,96548.0,6e-07]
[1733029842505,0.75296006,96549.0,96548.0,6e-07]
[1733029843214,0.56654036,96549.0,96548.0,6e-07]
[1733029843420,0.75296006,96549.0,96548.0,6e-07]
[1733029844429,0.56654036,96549.0,96548.0,6e-07]
[1733029844926,0.56654036,96549.0,96548.0,0.0008642]
[1733029847568,0.79966817,96549.0,96548.0,0.0008642]
[1733029849590,0.56654036,96549.0,96548.0,0.0008642]
[1733029857228,0.56826756,96549.0,96548.0,0.0008642]
[1733029859324,0.4554361,96549.0,96548.0,0.0008642]
[1733029859528,0.56495115,96549.0,96548.0,0.0008642]
[1733029860336,0.57495115,96549.0,96548.0,0.0008642]
[1733029862596,0.3417361,96549.0,96548.0,0.0008642]
[1733029862795,0.57495565,96549.0,96548.0,0.0008642]
[1733029862996,0.67778711,96549.0,96548.0,0.0008642]
[1733029864089,0.44456756,96549.0,96548.0,0.0008642]
[1733029864802,0.3417361,96549.0,96548.0,0.0008642]
[1733029867110,0.52830718,96549.0,96548.0,0.0008642]
[1733029867318,0.3317361,96549.0,96548.0,0.0008642]
[1733029867491,0.52830389,96549.0,96548.0,0.0008642]
[1733029867698,0.3417361,96549.0,96548.0,0.0008642]
[1733029867925,0.52830336,96549.0,96548.0,0.0008642]
[1733029868098,0.63113482,96549.0,96548.0,0.0008642]
[1733029868520,0.63113369,96549.0,96548.0,0.0008642]
[1733029868898,0.44456756,96549.0,96548.0,0.0008642]
[1733029874205,0.63113476,96549.0,96548.0,0.0008642]
[1733029874402,0.44456756,96549.0,96548.0,0.0008642]
[1733029876235,0.3317361,96549.0,96548.0,0.0008642]
[1733029876440,0.44865671,96549.0,96548.0,0.0008642]
[1733029876642,0.3087361,96549.0,96548.0,0.0008642]
[1733029877463,0.27637494,96549.0,96548.0,0.0008642]
[1733029877880,0.29937494,96549.0,96548.0,0.0008642]
[1733029881578,0.14937494,96549.0,96548.0,0.0008642]
[1733029881788,0.15166671,96549.0,96548.0,0.0008642]
[1733029881984,0.15166671,96549.0,96548.0,0.0491642]
[1733029884176,0.22959488,96549.0,96548.0,0.0491642]
[1733029884371,0.22730311,96549.0,96548.0,0.0491642]
[1733029888294,0.22730311,96549.0,96548.0,0.0008642]
[1733029908517,0.14937494,96549.0,96548.0,0.0008642]
[1733029908721,0.15166678,96549.0,96548.0,0.0008642]
[1733029917873,0.15166678,96549.0,96548.0,0.0026972]
[1733029944329,0.12866678,96549.0,96548.0,0.0026972]
[1733029944549,0.17716678,96549.0,96548.0,0.0026972]
[1733029944748,0.33397451,96549.0,96548.0,0.0026972]
[1733029944952,0.33168267,96549.0,96548.0,0.0026972]
[1733029947356,0.25037494,96549.0,96548.0,0.0026972]
[1733029948693,0.28276542,96549.0,96548.0,0.0026972]
[1733029951975,0.30576542,96549.0,96548.0,0.0026972]
[1733029954113,0.45576542,96549.0,96548.0,0.0026972]
[1733029955198,0.54903367,96549.0,96548.0,0.0026972]
[1733029955615,0.65186513,96549.0,96548.0,0.0026972]
[1733029956748,0.173,96547.0,96539.0,0.0008637]
[1733029957014,0.0794,96543.0,96539.0,0.0008637]
[1733029957249,0.10513743,96542.0,96539.0,0.0008637]
[1733029957440,0.00971015,96541.0,96539.0,0.0008637]
[1733029957659,0.10513743,96540.0,96539.0,0.0008637]
[1733029957869,0.11484758,96540.0,96539.0,0.0008637]
[1733029958074,0.16034758,96540.0,96539.0,0.0008637]
[1733029958495,0.36751558,96540.0,96539.0,0.0008637]
[1733029958672,0.36522336,96540.0,96539.0,0.0008637]
[1733029959083,0.36622336,96540.0,96539.0,0.0008637]
[1733029959465,0.4488021,96540.0,96539.0,0.0008637]
[1733029960092,0.4487989,96540.0,96539.0,0.0008637]
[1733029960495,0.4507989,96540.0,96539.0,0.0008637]
[1733029962209,0.6007989,96540.0,96539.0,0.0008637]
[1733029963457,0.61211834,96540.0,96539.0,0.0008637]
[1733029964893,0.63284836,96540.0,96539.0,0.0008637]
[1733029967390,0.63284245,96540.0,96539.0,0.0008637]
[1733029970031,0.63759474,96540.0,96539.0,0.0008637]
[1733029970988,0.555016,96540.0,96539.0,0.0008637]
[1733029971407,0.509516,96540.0,96539.0,0.0008637]
[1733029974005,0.50951616,96540.0,96539.0,0.0008637]
[1733029977494,0.50951992,96540.0,96539.0,0.0008637]
[1733029982915,0.51951992,96540.0,96539.0,0.0008637]
[1733029983112,0.36951992,96540.0,96539.0,0.0008637]
[1733029983316,0.3487899,96540.0,96539.0,0.0008637]
[1733029983519,0.33747046,96540.0,96539.0,0.0008637]
[1733029988756,0.33747046,96540.0,96539.0,0.1239637]
[1733029991171,0.23462525,96540.0,96539.0,0.1239637]
[1733029991401,0.25403624,96540.0,96539.0,0.1239637]
[1733029993574,0.23462525,96540.0,96539.0,0.1239637]
[1733029994427,0.25403171,96540.0,96539.0,0.1239637]
[1733029995494,0.23462525,96540.0,96539.0,0.1239637]
[1733029997312,0.23462269,96540.0,96539.0,0.1239637]
[1733029997721,0.23462283,96540.0,96539.0,0.1239637]
[1733029998286,0.22492029,96540.0,96539.0,0.1239637]
[1733029998498,0.23462283,96540.0,96539.0,0.1239637]
[1733030000404,0.23462283,96540.0,96539.0,0.0008637]
[1733030001443,0.25402921,96540.0,96539.0,0.0008637]
[1733030003469,0.23462283,96540.0,96539.0,0.0008637]
[1733030005328,0.02745483,96540.0,96539.0,0.0008637]
[1733030006949,0.02745483,96540.0,96539.0,0.00076672]
[1733030007961,0.02745802,96540.0,96539.0,0.00076672]
[1733030010223,0.02545802,96540.0,96539.0,0.00076672]
[1733030010678,0.02645802,96540.0,96539.0,0.00076672]
[1733030011073,0.02545802,96540.0,96539.0,0.00076672]
[1733030011270,0.02645802,96540.0,96539.0,0.00076672]
[1733030011444,0.02646106,96540.0,96539.0,0.00076672]
[1733030016505,0.07196106,96540.0,96539.0,0.00076672]
[1733030016712,0.15236106,96540.0,96539.0,0.00076672]
[1733030017728,0.07196106,96540.0,96539.0,0.00076672]
[1733030018929,0.06225229,96540.0,96539.0,0.00076672]
[1733030019338,0.07196718,96540.0,96539.0,0.00076672]
[1733030022272,0.07369438,96540.0,96539.0,0.00076672]
[1733030024873,0.02819438,96540.0,96539.0,0.00076672]
[1733030029479,0.02819582,96540.0,96539.0,0.00076672]
[1733030032642,0.01847949,96540.0,96539.0,0.00076672]
[1733030032847,0.02819592,96540.0,96539.0,0.00076672]
[1733030042288,0.02819707,96540.0,96539.0,0.00076672]
[1733030049367,0.01847949,96540.0,96539.0,0.00076672]
[1733030049581,0.02819698,96540.0,96539.0,0.00076672]
[1733030051042,0.07639698,96540.0,96539.0,0.00076672]
[1733030054655,0.15422438,96540.0,96539.0,0.00076672]
[1733030055674,0.07639698,96540.0,96539.0,0.00076672]
[1733030056237,0.09583309,96540.0,96539.0,0.00076672]
[1733030057746,0.1986783,96540.0,96539.0,0.00076672]
[1733030059401,0.18896081,96540.0,96539.0,0.00076672]
[1733030059607,0.19867902,96540.0,96539.0,0.00076672]
[1733030059808,0.25980948,96540.0,96539.0,0.00076672]
[1733030060027,0.28896411,96540.0,96539.0,0.00076672]
[1733030063192,0.27924402,96540.0,96539.0,0.00076672]
[1733030063478,0.27437592,96540.0,96539.0,0.00076672]
[1733030066124,0.26888584,96540.0,96539.0,0.00076672]
[1733030066329,0.27316431,96540.0,96539.0,0.00076672]
[1733030066553,0.27315234,96540.0,96539.0,0.00076672]
[1733030070100,0.27314306,96540.0,96539.0,0.00076672]
[1733030070365,0.25372049,96540.0,96539.0,0.00076672]
[1733030070592,0.27313325,96540.0,96539.0,0.00076672]
[1733030073631,0.27312845,96540.0,96539.0,0.00076672]
[1733030077268,0.2731214,96540.0,96539.0,0.00076672]
[1733030078196,0.36358124,96540.0,96539.0,0.00076672]
[1733030079437,0.2731214,96540.0,96539.0,0.00076672]
[1733030080537,0.25371586,96540.0,96539.0,0.00076672]
[1733030080748,0.29252634,96540.0,96539.0,0.00076672]
[1733030080981,0.2731211,96540.0,96539.0,0.00076672]
[1733030081231,0.29252634,96540.0,96539.0,0.00076672]
[1733030081935,0.38492667,96540.0,96539.0,0.00076672]
[1733030082355,0.36552143,96540.0,96539.0,0.00076672]
[1733030082582,0.3558197,96540.0,96539.0,0.00076672]
[1733030082789,0.36552284,96540.0,96539.0,0.00076672]
[1733030083635,0.27312251,96540.0,96539.0,0.00076672]
[1733030084184,0.27312347,96540.0,96539.0,0.00076672]
[1733030087585,0.26341937,96540.0,96539.0,0.00076672]
[1733030087790,0.27312597,96540.0,96539.0,0.00076672]
[1733030091013,0.27314129,96540.0,96539.0,0.00076672]
[1733030091600,0.24401309,96540.0,96539.0,0.00076672]
[1733030091817,0.27315111,96540.0,96539.0,0.00076672]
[1733030092021,0.56605667,96540.0,96539.0,0.00076672]
[1733030093078,0.56505667,96540.0,96539.0,0.00076672]
[1733030093280,0.56505667,96540.0,96532.0,0.0008639]
[1733030093281,0.331183,96533.0,96532.0,0.0008639]
[1733030093507,0.47668385,96533.0,96532.0,0.0008639]
[1733030094622,0.47768385,96533.0,96532.0,0.0008639]
[1733030094823,0.46797593,96533.0,96532.0,0.0008639]
[1733030095026,0.47769098,96533.0,96532.0,0.0008639]
[1733030095425,0.58052244,96533.0,96532.0,0.0008639]
[1733030095649,0.62769098,96533.0,96532.0,0.0008639]
[1733030095863,0.6830593,96533.0,96532.0,0.0008639]
[1733030096318,0.71414006,96533.0,96532.0,0.0008639]
[1733030097010,0.73472492,96533.0,96532.0,0.0008639]
[1733030097245,0.83655638,96533.0,96532.0,0.0008639]
[1733030097667,0.84455638,96533.0,96532.0,0.0018639]
[1733030097875,0.83655638,96533.0,96532.0,0.0008639]
[1733030098078,0.83655638,96533.0,96532.0,0.0018639]
[1733030098079,0.84455066,96533.0,96532.0,0.0018639]
[1733030098502,0.85575949,96533.0,96532.0,0.0018639]
[1733030098704,0.86575949,96533.0,96532.0,9e-07]
[1733030098912,0.95888209,96533.0,96532.0,9e-07]
[1733030099122,0.86575949,96533.0,96532.0,9e-07]
[1733030099379,0.95888209,96533.0,96532.0,9e-07]
[1733030099591,0.86575949,96533.0,96532.0,9e-07]
[1733030100397,0.95888209,96533.0,96532.0,9e-07]
[1733030100931,0.95882995,96533.0,96532.0,9e-07]
[1733030101345,0.94912062,96533.0,96532.0,9e-07]
[1733030101678,0.95882383,96533.0,96532.0,9e-07]
[1733030101902,0.95878941,96533.0,96532.0,9e-07]
[1733030102402,0.95878941,96533.0,96532.0,5e-07]
[1733030102608,0.85595795,96533.0,96532.0,5e-07]
[1733030103322,0.26237721,96518.0,96517.0,0.0009937]
[1733030103562,0.21816935,96518.0,96514.0,0.0008633]
[1733030103832,0.36277667,96517.0,96514.0,0.0008633]
[1733030104047,0.0504219,96516.0,96514.0,0.0008633]
[1733030104282,0.37247718,96515.0,96514.0,0.0008633]
[1733030104553,0.37018462,96515.0,96514.0,0.0008633]
[1733030104771,0.37441776,96515.0,96514.0,0.0008633]
[1733030107205,0.35502472,96515.0,96514.0,0.0008633]
[1733030107455,0.37439146,96515.0,96514.0,0.0008633]
[1733030108619,0.34337878,96515.0,96514.0,0.0008633]
[1733030108648,0.43887159,96515.0,96514.0,0.0008633]
[1733030108895,0.46187159,96515.0,96514.0,0.0008633]
[1733030109147,0.4711338,96515.0,96514.0,0.0008633]
[1733030109627,0.50213594,96515.0,96514.0,0.0008633]
[1733030110616,0.50211405,96515.0,96514.0,0.0008633]
[1733030111358,0.40662124,96515.0,96514.0,0.0008633]
[1733030112082,0.40661908,96515.0,96514.0,0.0008633]
[1733030112328,0.40661945,96515.0,96514.0,0.0008633]
[1733030114071,0.39692294,96515.0,96514.0,0.0008633]
[1733030114306,0.40660926,96515.0,96514.0,0.0008633]
[1733030114514,0.65539763,96515.0,96514.0,0.0008633]
[1733030115178,0.55660926,96515.0,96514.0,0.0008633]
[1733030115588,0.52561764,96515.0,96514.0,0.0008633]
[1733030120860,0.52562659,96515.0,96514.0,0.0008633]
[1733030121071,0.49656156,96515.0,96514.0,0.0008633]
[1733030121272,0.51595211,96515.0,96514.0,0.0008633]
[1733030121484,0.62847884,96515.0,96514.0,0.0008633]
[1733030122328,0.66995984,96515.0,96514.0,0.0008633]
[1733030125214,0.207243,96505.0,96504.0,0.08061356]
[1733030125463,0.33917403,96505.0,96504.0,0.08061356]
[1733030125719,0.34331873,96505.0,96504.0,0.08061356]
[1733030127757,0.34331873,96505.0,96504.0,0.08261356]
[1733030127882,0.34331873,96505.0,96504.0,0.08761356]
[1733030131078,0.13607573,96505.0,96504.0,0.08761356]
[1733030131548,0.12638046,96505.0,96504.0,0.08761356]
[1733030131981,0.13609706,96505.0,96504.0,0.08761356]
[1733030132651,0.11670651,96505.0,96504.0,0.08761356]
[1733030134197,0.11670651,96505.0,96504.0,0.00841356]
[1733030134613,0.11670675,96505.0,96504.0,0.00841356]
[1733030138203,0.11670648,96505.0,96504.0,0.00841356]
[1733030141572,0.01386127,96505.0,96504.0,0.08941356]
[1733030141804,0.00971657,96505.0,96504.0,0.09079791]
[1733030142027,0.00971621,96505.0,96504.0,0.09079791]
[1733030142768,0.00971621,96505.0,96504.0,0.13589791]
[1733030143738,0.21654361,96515.0,96504.0,0.13589791]
[1733030143942,0.21654361,96515.0,96509.0,0.18638824]
[1733030144599,0.21654361,96515.0,96508.0,0.18638824]
[1733030144827,0.21654361,96515.0,96508.0,0.18777259]
[1733030145566,0.21654361,96515.0,96508.0,0.00138435]
[1733030146352,0.00932161,96515.0,96508.0,0.00138435]
[1733030146539,0.21654461,96515.0,96508.0,0.18772209]
[1733030147684,0.21654461,96515.0,96508.0,0.00138435]
[1733030148157,0.00932161,96515.0,96508.0,0.00138435]
[1733030148841,0.01104881,96515.0,96508.0,0.00138435]
[1733030149070,0.0017866,96515.0,96508.0,0.00138435]
[1733030149768,0.0017866,96515.0,96509.0,0.00138426]
[1733030150257,0.00417406,96514.0,96509.0,0.00138426]
[1733030150723,0.00417406,96514.0,96506.0,0.18633774]
[1733030150724,0.00417406,96514.0,96507.0,0.00138429]
[1733030151673,0.00417406,96514.0,96509.0,0.001]
[1733030151899,0.01104881,96515.0,96509.0,0.00238429]
[1733030152111,0.21827081,96515.0,96509.0,0.00238429]
[1733030152325,0.21827081,96515.0,96510.0,0.00775885]
[1733030152541,0.00417406,96514.0,96511.0,0.00775885]
[1733030152988,0.00417406,96514.0,96512.0,0.02868202]
[1733030153198,0.00417406,96514.0,96513.0,0.08375885]
[1733030153413,0.0017866,96515.0,96513.0,0.0851428]
[1733030153625,0.0017866,96515.0,96514.0,0.01013529]
[1733030158640,0.0017866,96515.0,96514.0,0.01012794]
[1733030159468,0.0027866,96515.0,96514.0,0.14542794]
[1733030160323,0.0017866,96515.0,96514.0,0.13842794]
[1733030160712,0.0027866,96515.0,96514.0,0.15042794]
[1733030161138,0.0027866,96515.0,96514.0,0.14742548]